bitfinex/quotes_ETHUSD_20230111
["timestamp","ask_amount","ask_price","bid_price","bid_amount"]
[1673464785593,21.34407158,1339.8,1339.6,1.66770716]
[1673464785743,13.88026158,1339.8,1339.6,1.60170716]
[1673464785953,13.88026158,1339.8,1339.6,9.06661716]
[1673464786274,28.80788158,1339.8,1339.6,1.66770716]
[1673464786484,36.27169158,1339.8,1339.6,1.60170716]
[1673464786723,6.62716916,1339.7,1339.6,1.60170716]
[1673464786938,14.15751916,1339.7,1339.6,1.60170716]
[1673464787149,11.15751916,1339.7,1339.6,1.60170716]
[1673464787554,3.69316916,1339.7,1339.6,1.60170716]
[1673464787797,3.62716916,1339.7,1339.6,1.60170716]
[1673464788605,3.32716916,1339.7,1339.6,1.60170716]
[1673464789471,10.46435,1339.7,1339.6,1.60170716]
[1673464789690,25.45905,1339.7,1339.6,1.60170716]
[1673464789841,17.9947,1339.7,1339.6,1.60170716]
[1673464790207,25.45905,1339.7,1339.6,1.60170716]
[1673464794211,17.9947,1339.7,1339.6,1.60170716]
[1673464794517,34.04165723,1339.7,1339.6,1.60170716]
[1673464795051,39.13316571,1339.7,1339.6,1.60170716]
[1673464795204,40.24504002,1339.7,1339.6,1.60170716]
[1673464795415,43.51772196,1339.7,1339.6,1.60170716]
[1673464796256,42.40584765,1339.7,1339.6,1.60170716]
[1673464797665,39.25875658,1339.7,1339.6,1.60170716]
[1673464797887,43.79036506,1339.7,1339.6,1.60170716]
[1673464798250,39.25875658,1339.7,1339.6,1.60170716]
[1673464798835,42.67849075,1339.7,1339.6,1.60170716]
[1673464798986,38.14688227,1339.7,1339.6,1.60170716]
[1673464799510,42.67849075,1339.7,1339.6,1.60170716]
[1673464799741,38.14688227,1339.7,1339.6,1.60170716]
[1673464800161,11.95617163,1339.7,1339.6,1.60170716]
[1673464800370,26.88487163,1339.7,1339.6,1.60170716]
[1673464800608,34.34922163,1339.7,1339.6,1.60170716]
[1673464801249,35.46109594,1339.7,1339.6,1.60170716]
[1673464801615,34.34922163,1339.7,1339.6,1.60170716]
[1673464802526,19.42052163,1339.7,1339.6,1.60170716]
[1673464802667,26.88487163,1339.7,1339.6,1.60170716]
[1673464803093,34.34922163,1339.7,1339.6,1.60170716]
[1673464803305,5.39627163,1339.7,1339.6,9.06661716]
[1673464803611,0.61132504,1339.7,1339.6,9.13261716]
[1673464803850,0.54532504,1339.7,1339.6,1.66770716]
[1673464804081,0.54532504,1339.7,1339.6,1.60170716]
[1673464804691,19.4271,1339.8,1339.6,3.45351061]
[1673464806180,28.00289431,1339.8,1339.6,3.45351061]
[1673464806338,10.26463943,1339.7,1339.6,3.45351061]
[1673464806548,17.79498943,1339.7,1339.6,3.45351061]
[1673464806913,18.35488943,1339.7,1339.6,3.45351061]
[1673464807139,17.79498943,1339.7,1339.6,3.45351061]
[1673464807649,10.33063943,1339.7,1339.6,3.45351061]
[1673464808022,2.86628943,1339.7,1339.6,3.45351061]
[1673464808271,2.80028943,1339.7,1339.6,3.45351061]
[1673464808811,2.80028943,1339.7,1339.6,5.30535405]
[1673464809013,2.80028943,1339.7,1339.6,5.37135405]
[1673464809708,10.26463943,1339.7,1339.6,5.37135405]
[1673464809918,10.33063943,1339.7,1339.6,3.49150265]
[1673464810148,2.86628943,1339.7,1339.6,5.27737903]
[1673464810492,2.80028943,1339.7,1339.6,5.34337903]
[1673464810706,2.80028943,1339.7,1339.6,7.19524177]
[1673464810856,2.80028943,1339.7,1339.6,5.34337903]
[1673464811644,0.066,1339.8,1339.6,30.69923377]
[1673464811873,1.90487466,1339.9,1339.6,30.19881386]
[1673464812790,9.36813466,1339.9,1339.6,22.73390386]
[1673464812960,17.16918171,1339.9,1339.6,12.77100969]
[1673464813171,24.62704979,1339.9,1339.6,5.30609969]
[1673464813384,24.62704979,1339.9,1339.6,12.77098969]
[1673464813637,1.11187431,1339.8,1339.6,12.77098969]
[1673464813885,24.62704979,1339.9,1339.6,12.77098969]
[1673464814160,1.11187431,1339.8,1339.6,12.77098969]
[1673464814326,8.57567431,1339.8,1339.6,5.30609969]
[1673464814534,12.07411789,1339.8,1339.6,5.30609969]
[1673464814746,4.61031789,1339.8,1339.6,12.77096969]
[1673464814996,4.61031789,1339.8,1339.6,12.77097969]
[1673464814997,4.54431789,1339.8,1339.6,12.77097969]
[1673464815207,4.54431789,1339.8,1339.6,5.30609969]
[1673464815423,4.54431789,1339.8,1339.6,12.77081969]
[1673464815840,4.54431789,1339.8,1339.6,20.23572969]
[1673464816269,3.43244358,1339.8,1339.6,20.23572969]
[1673464816447,2.53077466,1339.9,1339.7,1.85173821]
[1673464816656,1.90487466,1339.9,1339.8,22.3914]
[1673464816848,0.79300035,1339.9,1339.8,22.4574]
[1673464817732,0.79300035,1339.9,1339.8,14.9936]
[1673464818264,0.79300035,1339.9,1339.8,22.4574]
[1673464818877,0.79300035,1339.9,1339.8,14.9936]
[1673464819734,0.79300035,1339.9,1339.8,7.5298]
[1673464819943,0.79300035,1339.9,1339.8,0.066]
[1673464820157,0.79300035,1339.9,1339.7,0.066]
[1673464820334,0.79300035,1339.9,1339.7,7.46435]
[1673464820543,0.79300035,1339.9,1339.7,7.53035]
[1673464822044,0.79300035,1339.9,1339.7,22.45905]
[1673464822264,0.79300035,1339.9,1339.7,24.95748397]
[1673464824995,0.79300035,1339.9,1339.7,17.49313397]
[1673464825360,0.79300035,1339.9,1339.7,14.9947]
[1673464825799,0.79300035,1339.9,1339.7,10.02878397]
[1673464826023,0.79300035,1339.9,1339.7,7.53035]
[1673464826253,0.79300035,1339.9,1339.7,14.9947]
[1673464826659,0.79300035,1339.9,1339.7,10.02878397]
[1673464826883,0.79300035,1339.9,1339.7,14.9947]
[1673464827202,0.79300035,1339.9,1339.8,5.64920142]
[1673464827359,0.79300035,1339.9,1339.8,20.64280142]
[1673464828311,0.79300035,1339.9,1339.8,18.79126064]
[1673464829719,0.79300035,1339.9,1339.8,32.22338256]
[1673464829895,0.79300035,1339.9,1339.8,31.10660801]
[1673464830086,0.79300035,1339.9,1339.8,36.74812528]
[1673464830302,0.79300035,1339.9,1339.8,41.65681684]
[1673464830564,0.79300035,1339.9,1339.8,40.54004229]
[1673464831192,0.79300035,1339.9,1339.8,40.53913088]
[1673464831400,0.79300035,1339.9,1339.8,42.77931052]
[1673464831618,0.79300035,1339.9,1339.8,40.53913089]
[1673464831826,31.61638306,1340.3,1339.9,3.0]
[1673464832139,0.91638306,1340.3,1340.0,29.18537064]
[1673464832295,0.85038306,1340.3,1340.2,22.38471]
[1673464832505,0.85038306,1340.3,1340.2,26.24837064]
[1673464834549,27.83901602,1340.5,1340.2,26.24837064]
[1673464834718,0.066,1340.5,1340.2,26.24837064]
[1673464834927,6.50998951,1340.6,1340.2,26.24837064]
[1673464835127,6.57598951,1340.6,1340.2,26.24837064]
[1673464836337,3.57598951,1340.6,1340.2,26.24837064]
[1673464836554,1.84253105,1340.6,1340.2,26.24837064]
[1673464837106,0.17105674,1340.6,1340.4,22.38135]
[1673464837270,0.17105674,1340.6,1340.4,26.24501064]
[1673464837471,0.13405674,1340.6,1340.4,26.24501064]
[1673464842518,0.13405674,1340.6,1340.4,26.24301064]
[1673464842773,0.13405674,1340.6,1340.4,26.24501064]
[1673464843088,0.13405674,1340.6,1340.4,36.24501064]
[1673464843302,0.13405674,1340.6,1340.5,3.79766064]
[1673464843514,6.45e-06,1340.7,1340.5,3.79766064]
[1673464843686,6.45e-06,1340.7,1340.6,33.63502064]
[1673464843895,6.45e-06,1340.7,1340.6,33.70102064]
[1673464844371,6.45e-06,1340.7,1340.6,26.24168064]
[1673464845759,6.45e-06,1340.7,1340.6,11.32300064]
[1673464845918,6.45e-06,1340.7,1340.6,0.066]
[1673464846121,6.45e-06,1340.7,1340.5,14.98527]
[1673464846333,6.45e-06,1340.7,1340.5,7.52549]
[1673464846605,1.81691307,1340.7,1340.5,0.066]
[1673464846913,3.0,1340.6,1340.4,10.066]
[1673464847127,16.73449307,1340.7,1340.4,10.066]
[1673464847128,9.34170307,1340.7,1340.4,13.86366064]
[1673464847308,10.52479645,1340.7,1340.4,21.32394064]
[1673464847712,10.52479645,1340.7,1340.4,28.78439064]
[1673464847922,3.06600645,1340.7,1340.4,28.78439064]
[1673464848123,6.54787594,1340.7,1340.4,36.24484064]
[1673464848464,6.61387594,1340.7,1340.4,36.24484064]
[1673464848890,6.61387594,1340.7,1340.4,28.78439064]
[1673464849232,21.53169594,1340.7,1340.4,21.32394064]
[1673464849535,6.61387594,1340.7,1340.4,28.78439064]
[1673464849747,6.61387594,1340.7,1340.4,36.24484064]
[1673464850967,14.07279594,1340.7,1340.4,21.32394064]
[1673464851178,1.40727959,1340.6,1340.4,10.066]
[1673464851426,8.86677959,1340.6,1340.4,10.066]
[1673464851746,8.93277959,1340.6,1340.4,10.066]
[1673464851907,16.39195959,1340.6,1340.4,10.066]
[1673464852117,23.85129959,1340.6,1340.4,10.066]
[1673464852784,16.39195959,1340.6,1340.4,10.066]
[1673464852996,1.47327959,1340.6,1340.4,10.066]
[1673464853312,1.40727959,1340.6,1340.4,17.52637]
[1673464854499,16.32612959,1340.6,1340.4,10.066]
[1673464854713,23.85163959,1340.6,1340.4,10.066]
[1673464856347,16.39212959,1340.6,1340.4,10.066]
[1673464857039,23.85129959,1340.6,1340.4,10.066]
[1673464857209,5.38512996,1340.5,1340.4,10.066]
[1673464857388,12.91102996,1340.5,1340.4,10.066]
[1673464857826,5.45112996,1340.5,1340.4,10.066]
[1673464858446,27.83082996,1340.5,1340.4,10.066]
[1673464859323,28.39042996,1340.5,1340.4,10.066]
[1673464860399,20.93052996,1340.5,1340.4,10.066]
[1673464860700,28.39042996,1340.5,1340.4,10.066]
[1673464861219,29.50230427,1340.5,1340.4,10.066]
[1673464862339,29.50230427,1340.5,1340.4,17.52645]
[1673464862340,3.01072996,1340.5,1340.4,17.52645]
[1673464862560,0.5596,1340.5,1340.4,10.066]
[1673464863377,3.1447539,1340.6,1340.4,10.066]
[1673464863587,10.5380939,1340.6,1340.4,10.066]
[1673464863798,0.5596,1340.5,1340.4,10.066]
[1673464864260,16.95173959,1340.6,1340.4,10.066]
[1673464864477,2.03287959,1340.6,1340.4,10.066]
[1673464864685,1.96687959,1340.6,1340.4,10.066]
[1673464864858,9.42634959,1340.6,1340.4,10.066]
[1673464865064,19.95181959,1340.6,1340.4,10.066]
[1673464865315,9.45508196,1340.5,1340.4,10.066]
[1673464865482,9.52108196,1340.5,1340.4,10.066]
[1673464866268,10.63295627,1340.5,1340.4,10.066]
[1673464866635,18.09285627,1340.5,1340.4,10.066]
[1673464866841,18.09285627,1340.5,1340.4,10.06291554]
[1673464867266,9.52108196,1340.5,1340.4,10.06291554]
[1673464868469,3.17305627,1340.5,1340.4,10.06291554]
[1673464868634,10.56695627,1340.5,1340.4,10.06291554]
[1673464868838,1.17787431,1340.5,1340.4,10.06291554]
[1673464869051,1.11187431,1340.5,1340.4,10.06291554]
[1673464869378,2.84533277,1340.6,1340.4,24.98381554]
[1673464869695,1.67147431,1340.6,1340.4,24.98381554]
[1673464869906,1.67147431,1340.6,1340.4,17.52336554]
[1673464869907,1.11187431,1340.6,1340.4,17.52336554]
[1673464870131,2.77933277,1340.6,1340.4,17.52336554]
[1673464870340,1.11187431,1340.6,1340.4,17.52336554]
[1673464871101,1.11187431,1340.6,1340.4,24.98381554]
[1673464871290,2.29296491,1340.7,1340.4,24.98381554]
[1673464871291,2.77933922,1340.7,1340.4,24.98381554]
[1673464871506,2.77933922,1340.7,1340.4,32.44426554]
[1673464871730,1.11188076,1340.7,1340.4,35.22035031]
[1673464872043,1.11188076,1340.7,1340.5,3.0]
[1673464872252,1.11188076,1340.7,1340.5,21.71713064]
[1673464872417,1.11188076,1340.7,1340.5,29.24303064]
[1673464872623,6.45e-06,1340.7,1340.5,29.24303064]
[1673464872872,1.11188076,1340.7,1340.5,29.24303064]
[1673464873498,6.45e-06,1340.7,1340.5,32.01888594]
[1673464873674,6.45e-06,1340.7,1340.5,29.24303064]
[1673464873880,6.45e-06,1340.7,1340.6,3.79766064]
[1673464874145,0.18615971,1340.8,1340.7,22.37836355]
[1673464874310,0.18615971,1340.8,1340.7,26.24202419]
[1673464878629,0.18615971,1340.8,1340.7,11.32444419]
[1673464879463,0.18615971,1340.8,1340.7,11.32245064]
[1673464879886,0.18615971,1340.8,1340.7,26.24003064]
[1673464880764,0.18615971,1340.8,1340.7,18.78124064]
[1673464881918,0.18615971,1340.8,1340.7,26.24003064]
[1673464883267,0.18615971,1340.8,1340.7,3.86366064]
[1673464883480,0.18615971,1340.8,1340.7,18.71524064]
[1673464883690,1.56215971,1340.8,1340.7,3.86366064]
[1673464884025,16.47861971,1340.8,1340.6,1.91644384]
[1673464884232,16.47861971,1340.8,1340.6,9.30961384]
[1673464884233,1.62815971,1340.8,1340.6,9.30961384]
[1673464884443,1.56215971,1340.8,1340.6,16.83495384]
[1673464884599,9.02043971,1340.8,1340.6,1.91644384]
[1673464884809,27.6283029,1340.8,1340.6,1.85044384]
[1673464885040,20.1700229,1340.8,1340.6,1.85044384]
[1673464885577,12.7117429,1340.8,1340.6,1.85044384]
[1673464886424,12.67949934,1340.8,1340.6,1.85044384]
[1673464886920,30.59595934,1340.8,1340.6,1.85044384]
[1673464887121,3.05959593,1340.7,1340.6,1.85044384]
[1673464887452,3.0,1340.7,1340.6,1.85044384]
[1673464887857,17.91758,1340.7,1340.6,1.85044384]
[1673464888112,17.98358,1340.7,1340.6,1.85044384]
[1673464888727,25.44237,1340.7,1340.6,1.85044384]
[1673464891665,32.9523401,1340.7,1340.6,1.85044384]
[1673464891912,34.91772651,1340.7,1340.6,1.85044384]
[1673464892200,44.19604556,1340.7,1340.6,1.85044384]
[1673464893260,29.8396,1340.5,1340.4,12.77267452]
[1673464893598,30.4652,1340.5,1340.4,12.83867452]
[1673464893751,33.4652,1340.5,1340.4,12.83867452]
[1673464894112,37.11172,1340.5,1340.4,12.83867452]
[1673464895372,40.90938064,1340.5,1340.4,12.83867452]
[1673464900295,43.69442534,1340.5,1340.4,12.83867452]
[1673464901365,3.0,1340.4,1340.2,8.9e-07]
[1673464901590,14.92202,1340.3,1340.2,8.9e-07]
[1673464901743,0.066,1340.3,1340.2,8.9e-07]
[1673464901965,36.73941718,1340.4,1340.2,8.9e-07]
[1673464902174,42.15849456,1340.4,1340.2,8.9e-07]
[1673464902400,7.46101,1340.3,1340.2,8.9e-07]
[1673464902639,7.52701,1340.3,1340.2,8.9e-07]
[1673464902950,0.066,1340.3,1340.2,8.9e-07]
[1673464903165,42.15841456,1340.4,1340.2,8.9e-07]
[1673464903381,41.04432738,1340.4,1340.2,8.9e-07]
[1673464903685,26.12267738,1340.4,1340.2,7.46146089]
[1673464903911,16.84217738,1340.4,1340.2,7.52746089]
[1673464904057,11.4231,1340.4,1340.2,7.52746089]
[1673464905032,11.4231,1340.4,1340.2,0.06600089]
[1673464905246,11.4231,1340.4,1340.3,7.46101]
[1673464905450,11.4231,1340.4,1340.3,7.52701]
[1673464905711,11.4231,1340.4,1340.3,0.066]
[1673464905864,11.4231,1340.4,1340.3,0.002]
[1673464906078,11.4231,1340.4,1340.2,8.9e-07]
[1673464906530,18.88358,1340.4,1340.2,8.9e-07]
[1673464906721,31.310181,1340.4,1340.2,8.9e-07]
[1673464906926,38.770661,1340.4,1340.2,8.9e-07]
[1673464908916,38.76745278,1340.4,1340.2,8.9e-07]
[1673464909172,50.78292548,1340.4,1340.2,8.9e-07]
[1673464909491,54.58058612,1340.4,1340.2,8.9e-07]
[1673464909714,8.45805861,1340.3,1340.2,8.9e-07]
[1673464909872,15.98506861,1340.3,1340.2,8.9e-07]
[1673464910225,8.52405861,1340.3,1340.2,8.9e-07]
[1673464910436,15.98506861,1340.3,1340.2,8.9e-07]
[1673464910593,5.52405861,1340.3,1340.2,8.9e-07]
[1673464910804,0.066,1340.3,1340.2,8.9e-07]
[1673464911067,23.84651278,1340.4,1340.2,8.9e-07]
[1673464911225,31.30715278,1340.4,1340.2,8.9e-07]
[1673464911434,16.38601278,1340.4,1340.2,8.9e-07]
[1673464911653,11.41989178,1340.4,1340.3,7.46101]
[1673464911854,11.41989178,1340.4,1340.3,7.52701]
[1673464912060,11.41989178,1340.4,1340.3,0.066]
[1673464912319,0.066,1340.4,1340.2,14.98860089]
[1673464912621,2.78392345,1340.5,1340.2,26.99740395]
[1673464912835,2.78392345,1340.5,1340.2,26.99968342]
[1673464913219,2.78392345,1340.5,1340.2,30.79689]
[1673464913692,2.78392345,1340.5,1340.3,3.0]
[1673464913850,2.78392345,1340.5,1340.4,7.46045]
[1673464914213,2.78392345,1340.5,1340.4,7.52645]
[1673464914530,2.78392345,1340.5,1340.4,14.9869]
[1673464915372,2.29403575,1340.6,1340.4,18.78456064]
[1673464915595,2.29403575,1340.6,1340.5,2.5]
[1673464915596,2.22803575,1340.6,1340.5,2.5]
[1673464915742,2.22803575,1340.6,1340.5,7.4599]
[1673464916106,2.22803575,1340.6,1340.5,14.9858]
[1673464918618,2.22803575,1340.6,1340.5,0.066]
[1673464918795,2.22803575,1340.6,1340.4,11.32378064]
[1673464919005,2.22803575,1340.6,1340.4,3.86366064]
[1673464919341,9.68739575,1340.6,1340.3,14.99134888]
[1673464919685,17.21275575,1340.6,1340.3,3.86775952]
[1673464919897,17.21275575,1340.6,1340.3,3.80175952]
[1673464920204,17.21275575,1340.6,1340.3,3.79766064]
[1673464920205,24.67211575,1340.6,1340.3,3.79766064]
[1673464920515,2.29403575,1340.6,1340.3,18.71963064]
[1673464920831,2.22803575,1340.6,1340.3,26.24664064]
[1673464923253,0.0207348,1340.9,1340.7,3.79766064]
[1673464923468,0.2671764,1341.0,1340.8,26.40235064]
[1673464923677,0.2011764,1341.0,1340.9,3.79766064]
[1673464923992,0.2011764,1341.0,1340.9,26.17067064]
[1673464924202,0.2011764,1341.0,1340.9,18.77900064]
[1673464926476,0.2011764,1341.0,1340.9,23.33349998]
[1673464926705,0.2011764,1341.0,1340.9,27.99545223]
[1673464926706,6.4e-06,1341.0,1340.9,27.99545223]
[1673464927043,6.4e-06,1341.0,1340.9,28.22545223]
[1673464927350,6.4e-06,1341.0,1340.9,21.77900064]
[1673464927556,6.4e-06,1341.0,1340.9,22.00900064]
[1673464927878,6.4e-06,1341.0,1340.9,7.52367]
[1673464928033,6.4e-06,1341.0,1340.9,0.066]
[1673464928250,6.4e-06,1341.0,1340.7,3.0]
[1673464928251,2.76648284,1341.0,1340.7,3.0]
[1673464928459,2.6520064,1341.0,1340.8,11.25585064]
[1673464928668,2.6520064,1341.0,1340.8,11.32185064]
[1673464928882,2.6520064,1341.0,1340.8,18.78008064]
[1673464929664,2.6520064,1341.0,1340.8,0.066]
[1673464929840,2.6520064,1341.0,1340.7,7.45874]
[1673464930047,0.26520064,1340.9,1340.7,7.52474]
[1673464930427,1.2760064,1341.0,1340.7,7.52474]
[1673464933119,1.21075803,1341.1,1341.0,26.17101424]
[1673464933324,0.18503424,1341.1,1341.0,18.77989424]
[1673464933542,0.18503424,1341.1,1341.0,26.23701424]
[1673464934090,0.18503424,1341.1,1341.0,18.77989424]
[1673464934388,0.18503424,1341.1,1341.0,30.21851564]
[1673464936865,0.18503424,1341.1,1341.0,29.46701424]
[1673464938629,0.12984152,1341.1,1341.0,29.46701424]
[1673464940251,5.57e-06,1341.2,1341.1,3.38952455]
[1673464940466,0.27794428,1341.3,1341.1,4.41718519]
[1673464940675,0.21393871,1341.3,1341.2,33.62166064]
[1673464940934,0.21393871,1341.3,1341.2,33.68766064]
[1673464941360,0.21393871,1341.3,1341.2,11.31966064]
[1673464941516,0.21393871,1341.3,1341.2,26.23166064]
[1673464941725,0.21393871,1341.3,1341.2,11.31966064]
[1673464941981,1.58993871,1341.3,1341.2,0.066]
[1673464942266,4.77032645,1341.3,1341.1,0.45552455]
[1673464942431,4.77032645,1341.3,1341.1,7.84577455]
[1673464942602,4.77032645,1341.3,1341.1,15.36815455]
[1673464942814,4.77032645,1341.3,1341.1,22.82471455]
[1673464942815,1.77032645,1341.3,1341.1,22.82471455]
[1673464943847,1.77032645,1341.3,1341.1,0.45552455]
[1673464943848,16.68125645,1341.3,1341.1,0.45552455]
[1673464944103,3.38833265,1341.2,1341.1,0.38952455]
[1673464944327,28.19703265,1341.2,1341.1,0.38952455]
[1673464944542,28.26103822,1341.2,1341.1,0.35852455]
[1673464945638,20.80503822,1341.2,1341.1,0.35852455]
[1673464946943,28.26103822,1341.2,1341.1,0.35852455]
[1673464947583,28.82033822,1341.2,1341.1,0.35852455]
[1673464947896,21.31433822,1341.2,1341.1,0.35852455]
[1673464948061,28.77033822,1341.2,1341.1,0.35852455]
[1673464948426,21.31433822,1341.2,1341.1,0.35852455]
[1673464948635,28.77033822,1341.2,1341.1,0.35852455]
[1673464950510,21.31433822,1341.2,1341.1,0.35852455]
[1673464950722,13.85833822,1341.2,1341.1,0.35852455]
[1673464951359,0.62330557,1341.2,1341.1,0.35852455]
[1673464951535,8.0153,1341.2,1341.1,0.35852455]
[1673464951754,11.07930557,1341.2,1341.1,0.35852455]
[1673464951979,0.62330557,1341.2,1341.1,0.35852455]
[1673464952331,36.85517871,1341.3,1341.1,0.35852455]
[1673464952332,22.56704428,1341.3,1341.1,0.35852455]
[1673464952629,12.09714428,1341.3,1341.1,0.35852455]
[1673464953426,19.55285428,1341.3,1341.1,0.35852455]
[1673464953647,27.00856428,1341.3,1341.1,0.35852455]
[1673464954202,19.55285428,1341.3,1341.1,0.35852455]
[1673464954417,12.09714428,1341.3,1341.1,0.35852455]
[1673464954574,12.09714428,1341.3,1341.1,7.81492455]
[1673464954934,12.09714428,1341.3,1341.1,22.79404455]
[1673464955146,12.65644428,1341.3,1341.1,15.33748455]
[1673464955678,12.09714428,1341.3,1341.1,7.88092455]
[1673464956201,30.56734428,1341.3,1341.1,0.42452455]
[1673464956513,30.56734428,1341.3,1341.1,0.35852455]
[1673464956514,12.09714428,1341.3,1341.1,0.35852455]
[1673464956825,12.09714428,1341.3,1341.1,15.27136455]
[1673464957041,12.65644428,1341.3,1341.1,0.42452455]
[1673464957193,12.09714428,1341.3,1341.1,0.35852455]
[1673464957720,12.09714428,1341.3,1341.1,15.27097455]
[1673464957930,12.09714428,1341.3,1341.1,15.33697455]
[1673464958352,12.09714428,1341.3,1341.1,0.42452455]
[1673464958557,19.55284428,1341.3,1341.1,0.35852455]
[1673464958977,34.46424428,1341.3,1341.1,0.35852455]
[1673464959618,27.00854428,1341.3,1341.1,0.35852455]
[1673464959827,30.69877961,1341.3,1341.1,0.35852455]
[1673464960050,38.15447961,1341.3,1341.1,0.35852455]
[1673464960398,38.71327961,1341.3,1341.1,0.35852455]
[1673464960721,3.0,1341.2,1341.1,0.35852455]
[1673464961031,25.368,1341.2,1341.1,0.35852455]
[1673464961245,31.07488256,1341.2,1341.1,0.35852455]
[1673464962551,32.74052287,1341.2,1341.1,0.35852455]
[1673464962808,3.0,1341.1,1341.0,0.0019936]
[1673464962983,34.85528,1341.1,1341.0,0.0019936]
[1673464963181,35.47868557,1341.1,1341.0,0.0019936]
[1673464963396,41.12684192,1341.1,1341.0,0.0019936]
[1673464964770,44.92450256,1341.1,1341.0,0.0019936]
[1673464966383,30.01138256,1341.1,1341.0,0.0019936]
[1673464966969,15.75716192,1341.1,1341.0,0.0019936]
[1673464967208,15.75716192,1341.1,1341.0,14.9162336]
[1673464967209,10.10900557,1341.1,1341.0,14.9162336]
[1673464967379,0.06400557,1341.1,1341.0,0.0679936]
[1673464967594,6.5593,1341.2,1341.0,0.0019936]
[1673464967799,14.07942557,1341.2,1341.0,0.0019936]
[1673464968067,3.0,1341.1,1341.0,0.0019936]
[1673464968434,14.07936557,1341.2,1341.0,0.0019936]
[1673464968435,6.06400557,1341.2,1341.0,0.0019936]
[1673464968640,16.29806103,1341.2,1341.0,0.0019936]
[1673464968855,3.0,1341.1,1341.0,0.0019936]
[1673464970326,7.50740134,1341.2,1341.0,0.0019936]
[1673464970535,14.96345134,1341.2,1341.0,0.0019936]
[1673464970747,7.50740134,1341.2,1341.0,0.0019936]
[1673464970958,13.29777103,1341.2,1341.0,0.0019936]
[1673464971180,20.75378103,1341.2,1341.0,0.0019936]
[1673464971424,13.29777103,1341.2,1341.0,0.0019936]
[1673464972224,0.06400557,1341.2,1341.0,14.9157836]
[1673464972529,14.32208459,1341.3,1341.0,22.4389036]
[1673464972651,21.77756459,1341.3,1341.2,0.06400556]
[1673464972873,34.69752901,1341.3,1341.2,0.06400556]
[1673464973180,42.15300901,1341.3,1341.2,0.06400556]
[1673464973537,34.69752901,1341.3,1341.2,0.06400556]
[1673464973903,27.24204901,1341.3,1341.2,0.06400556]
[1673464974330,34.69752901,1341.3,1341.2,0.06400556]
[1673464975483,27.24204901,1341.3,1341.2,0.06400556]
[1673464975728,34.69752901,1341.3,1341.2,0.06400556]
[1673464975897,34.69752901,1341.3,1341.0,14.7647926]
[1673464976109,42.15300901,1341.3,1341.0,0.066]
[1673464976360,42.15300901,1341.3,1340.9,14.98084]
[1673464976558,42.15300901,1341.3,1340.9,7.52341]
[1673464976984,42.15300901,1341.3,1340.9,14.98108]
[1673464977173,42.15300901,1341.3,1340.9,16.0865226]
[1673464977382,42.15300901,1341.3,1340.9,7.52341]
[1673464978000,42.15300901,1341.3,1340.9,14.98108]
[1673464978786,3.0,1341.2,1340.9,0.066]
[1673464979008,3.0,1341.2,1340.8,17.7453765]
[1673464979009,17.91245,1341.2,1340.8,17.7453765]
[1673464979162,29.94827547,1341.2,1340.9,1.85001784]
[1673464979783,22.49190547,1341.2,1340.9,1.85001784]
[1673464980155,22.49190547,1341.2,1340.9,9.30763784]
[1673464980365,22.49190547,1341.2,1340.9,7.52362]
[1673464980676,16.70117578,1341.2,1340.9,14.98129]
[1673464981189,15.03553547,1341.2,1340.9,14.98129]
[1673464981581,15.03553547,1341.2,1340.9,16.0867326]
[1673464981795,12.03553547,1341.2,1340.9,16.0867326]
[1673464982035,4.57945547,1341.2,1340.9,23.5444026]
[1673464982254,4.5154499,1341.2,1340.9,23.5444026]
[1673464982462,4.5154499,1341.2,1340.9,22.43896]
[1673464982691,6.18109021,1341.2,1340.9,22.43896]
[1673464982836,6.24509578,1341.2,1340.9,22.43896]
[1673464983270,13.70121578,1341.2,1340.9,7.52362]
[1673464983478,1.37012158,1341.1,1340.9,0.066]
[1673464983817,1.37012158,1341.1,1340.9,7.45746]
[1673464984019,1.37012158,1341.1,1340.9,7.52346]
[1673464985280,1.37012158,1341.1,1340.9,14.98113]
[1673464985695,2.78901216,1341.0,1340.9,0.066]
[1673464986020,22.37136,1341.0,1340.7,2.8296065]
[1673464986204,25.43536557,1341.0,1340.8,1.85027099]
[1673464986414,25.43536557,1341.0,1340.7,2.8296065]
[1673464986415,2.237136,1340.9,1340.7,2.8296065]
[1673464986662,2.237136,1340.9,1340.8,9.30848577]
[1673464986830,3.06400557,1341.0,1340.8,1.91625577]
[1673464987040,15.095,1341.0,1340.7,20.52203021]
[1673464987250,22.61626557,1341.0,1340.8,1.85024404]
[1673464987708,37.53078557,1341.0,1340.8,1.85024404]
[1673464988040,3.75307856,1340.9,1340.8,1.85024404]
[1673464988234,15.15900557,1341.0,1340.8,1.85024404]
[1673464988623,30.07344557,1341.0,1340.8,1.85024404]
[1673464989198,15.15900557,1341.0,1340.8,1.85024404]
[1673464989363,15.15900557,1341.0,1340.8,10.41387664]
[1673464989575,12.15900557,1341.0,1340.8,8.6296326]
[1673464990092,12.15900557,1341.0,1340.9,1.85016595]
[1673464990301,12.15900557,1341.0,1340.9,17.87094855]
[1673464990512,12.15900557,1341.0,1340.9,3.02160855]
[1673464990772,0.06400557,1341.0,1340.9,2.95560855]
[1673464990982,35.76134557,1341.2,1340.9,2.95560855]
[1673464991304,40.5490144,1341.2,1340.9,2.95560855]
[1673464991676,42.21465471,1341.2,1340.9,1.85016595]
[1673464991900,42.21465471,1341.2,1340.8,17.7455265]
[1673464991901,49.67117471,1341.2,1340.8,17.7455265]
[1673464992131,49.67117471,1341.2,1340.9,1.85006115]
[1673464992345,0.5594,1341.1,1340.9,1.85006115]
[1673464992527,19.93631747,1341.1,1340.9,1.85006115]
[1673464992752,3.0,1341.0,1340.9,1.85006115]
[1673464992978,25.37136,1341.0,1340.9,1.85006115]
[1673464993294,17.97824557,1341.0,1340.9,1.85006115]
[1673464993505,10.52112557,1341.0,1340.8,2.95550375]
[1673464995076,17.97824557,1341.0,1340.8,2.95550375]
[1673464995288,10.52112557,1341.0,1340.8,2.95550375]
[1673464995504,17.97824557,1341.0,1340.8,2.95550375]
[1673464995668,10.52112557,1341.0,1340.8,2.95550375]
[1673464995885,17.97824557,1341.0,1340.8,2.95550375]
[1673464996185,0.06400557,1341.0,1340.8,10.41364375]
[1673464996400,19.93663747,1341.1,1340.9,1.85006115]
[1673464996401,7.52056557,1341.1,1340.9,1.85006115]
[1673464996656,0.06400557,1341.1,1340.9,1.85006115]
[1673464996973,50.23063471,1341.2,1340.9,1.85006115]
[1673464997165,8.02306347,1341.1,1340.9,1.85006115]
[1673464997378,5.08706904,1341.1,1340.9,1.85006115]
[1673464998992,0.06400557,1341.1,1340.9,16.76511115]
[1673464999154,33.6519644,1341.2,1341.0,1.85006115]
[1673464999368,23.9795644,1341.2,1341.0,1.85006115]
[1673464999732,11.73580557,1341.2,1341.0,1.85006115]
[1673465000253,11.73580557,1341.2,1341.0,9.30716115]